fUST/lending_fUST_20251209
["ID","MTS","AMOUNT","RATE_DAILY","PERIOD"]
[397977843,1765262300998,-676.26,0.00024532,30]
[397977844,1765262301024,-3943.99349921,0.000249,30]
[397977845,1765262301047,-1000.0,0.00025,120]
[397977846,1765262301070,-200.0,0.00025,120]
[397977847,1765262301093,-157.98984964,0.00025,120]
[397977848,1765262301116,-159.0,0.00025,30]
[397977849,1765262301139,-150.0,0.00025,30]
[397977850,1765262301163,-150.0,0.00025,30]
[397977851,1765262301186,-150.0,0.00025,30]
[397977852,1765262301210,-150.0,0.00025,30]
[397977853,1765262301234,-170.0,0.00025,30]
[397977854,1765262301262,-845.33,0.00025555,30]
[397977855,1765262301284,-161.40596873,0.00025847,120]
[397977856,1765262301307,-1000.0,0.00026,120]
[397977857,1765262301330,-11017.04,0.00026,120]
[397977858,1765262301353,-2463.59,0.000262,30]
[397977859,1765262301378,-1014.39,0.00026577,30]
[397977860,1765262301401,-500.0,0.00027,30]
[397977861,1765262301424,-800.0,0.00027,120]
[397977862,1765262301453,-2506.12577247,0.00027397,30]
[397977863,1765262301479,-95000.0,0.00027397,30]
[397977864,1765262301509,-1183.46,0.00027599,30]
[397977865,1765262301532,-200.0,0.000276,120]
[397977866,1765262301556,-200.0,0.000276,120]
[397977867,1765262301581,-300.0,0.000278,120]
[397977868,1765262301604,-200.0,0.000279,120]
[397977869,1765262301628,-1163.77299,0.000279,120]
[397977870,1765262301652,-900.0,0.000284,120]
[397977871,1765262301676,-475.0,0.000285,120]
[397977872,1765262301702,-1352.52,0.00028621,30]
[397977873,1765262301727,-180.0,0.00028685,30]
[397977874,1765262301751,-154.38821965,0.0002876,120]
[397977875,1765262301774,-739.323583,0.00028767,60]
[397977876,1765262301798,-200.0,0.000288,120]
[397977877,1765262301823,-1163.77299,0.000288,120]
[397977878,1765262301847,-475.0,0.0002884,120]
[397977879,1765262302022,-475.0,0.0002884,120]
[397977880,1765262302057,-243.44435,0.00029,120]
[397977881,1765262302082,-400.0,0.00029,120]
[397977882,1765262302107,-200.0,0.000292,120]
[397977883,1765262302131,-300.0,0.000294,120]
[397977884,1765262302155,-153.04968629,0.000295,120]
[397977885,1765262302182,-1521.59,0.00029643,30]
[397977886,1765262302206,-207.13834,0.000297,120]
[397977887,1765262302229,-1163.77299,0.000297,120]
[397977888,1765262302252,-158.0,0.00029781,36]
[397977889,1765262302277,-400.0,0.000298,120]
[397977890,1765262302302,-366.88263164,0.0003,120]
[397977891,1765262302326,-506.70536065,0.0003,120]
[397977892,1765262302349,-994.93229719,0.0003,120]
[397977893,1765262302375,-1189.0,0.0003,45]
[397977894,1765262302398,-160.98353721,0.0003,60]
[397977895,1765262302423,-748.87566976,0.0003,120]
[397977896,1765262302447,-260.94899249,0.0003,120]
[397977897,1765262302472,-900.0,0.0003,120]
[397977898,1765262302496,-523.89816366,0.0003,120]
[397977899,1765262302519,-200.0,0.0003,120]
[397977900,1765262302543,-439.0,0.0003,120]
[397977901,1765262302571,-1142.0,0.0003,120]
[397977902,1765262302597,-1100.011433,0.0003,30]
[397977903,1765262302622,-9391.35103858,0.0003,30]
[397977904,1765262302648,-659.50153647,0.0003,120]
[397977905,1765262302672,-151.0491487,0.0003,120]
[397977906,1765262302696,-4380.41931583,0.0003,60]
[397977907,1765262302720,-347.30356795,0.0003,120]
[397977908,1765262302744,-16464.6391536,0.0003,30]
[397977909,1765262302770,-347.30356795,0.0003,30]
[397977910,1765262302794,-150.0,0.0003,60]
[397977911,1765262302817,-150.0,0.0003,60]
[397977912,1765262302840,-150.0,0.0003,60]
[397977913,1765262302863,-150.0,0.0003,60]
[397977914,1765262302887,-170.0,0.0003,60]
[397977915,1765262302911,-1216.08,0.0003,30]
[397977916,1765262302934,-158.35952373,0.0003013,30]
[397977917,1765262302959,-518.3126986,0.00030137,120]
[397977918,1765262302982,-1291.26682,0.00030137,120]
[397977919,1765262303005,-391.0305447,0.00030137,30]
[397977920,1765262303029,-337.21615809,0.0003015,120]
[397977921,1765262303053,-2228.3254678,0.00030177,120]
[397977922,1765262303076,-542.5,0.000303,120]
[397977923,1765262303114,-1163.77299,0.000306,120]
[397977924,1765262303151,-1690.63257988,0.00030666,30]
[397977925,1765262303186,-475.0,0.00030683,120]
[397977926,1765262303219,-475.0,0.00030683,120]
[397977927,1765262303251,-151.37006691,0.000308,60]
[397977928,1765262303284,-200.0,0.000308,120]
[397977929,1765262303318,-201.0,0.00030877,42]
[397977930,1765262303351,-347.30356795,0.000309,30]
[397977931,1765262303384,-864.14,0.00030958,30]
[397977932,1765262303416,-250.0,0.00031,120]
[397977933,1765262303448,-167.19985043,0.00031,120]
[397977934,1765262303481,-162.44478861,0.00031,120]
[397977935,1765262303512,-181.9741005,0.00031,120]
[397977936,1765262303546,-175.10810486,0.00031,120]
[397977937,1765262303578,-569.31307638,0.00031,120]
[397977938,1765262303611,-184.97330614,0.00031,120]
[397977939,1765262303643,-582.38771611,0.00031,120]
[397977940,1765262303676,-305.48453806,0.00031,120]
[397977941,1765262303713,-177.06508976,0.00031,120]
[397977942,1765262303752,-697.76350612,0.00031,120]
[397977943,1765262303789,-444.45209109,0.00031,120]
[397977944,1765262303828,-548.53887552,0.00031,120]
[397977945,1765262303867,-944.82205999,0.00031,120]
[397977946,1765262303905,-175.30635976,0.00031,120]
[397977947,1765262303942,-987.63828981,0.00031,120]
[397977948,1765262303978,-500.0,0.000311,99]
[397977949,1765262304013,-500.0,0.000311,99]
[397977950,1765262304048,-500.0,0.000311,99]
[397977951,1765262304082,-500.0,0.000311,99]
[397977952,1765262304116,-500.0,0.000311,99]
[397977953,1765262304152,-700.0,0.000314,120]
[397977954,1765262304187,-475.0,0.00031411,120]
[397977955,1765262304224,-475.0,0.00031411,120]
[397977956,1765262304259,-1163.77299,0.000315,120]
[397977957,1765262304293,-219.99,0.0003165,30]
[397977958,1765262304329,-300.0,0.000318,120]
[397977959,1765262304366,-347.30356795,0.000318,30]
[397977960,1765262304400,-864.14,0.00031863,30]
[397977961,1765262304437,-243.44435,0.000319,120]
[397977962,1765262304471,-167.19985043,0.000319,120]
[397977963,1765262304505,-162.44478861,0.000319,120]
[397977964,1765262304541,-181.9741005,0.000319,120]
[397977965,1765262304579,-175.10810486,0.000319,120]
[397977966,1765262304613,-569.31307638,0.000319,120]
[397977967,1765262304648,-184.97330614,0.000319,120]
[397977968,1765262304686,-582.38771611,0.000319,120]
[397977969,1765262304721,-305.48453806,0.000319,120]
[397977970,1765262304758,-177.06508976,0.000319,120]
[397977971,1765262304794,-697.76350612,0.000319,120]
[397977972,1765262304830,-444.45209109,0.000319,120]
[397977973,1765262304869,-548.53887552,0.000319,120]
[397977974,1765262304907,-944.82205999,0.000319,120]
[397977975,1765262304945,-175.30635976,0.000319,120]
[397977976,1765262304985,-987.63828981,0.000319,120]
[397977977,1765262305020,-1054.05803025,0.00031945,120]
[397977978,1765262305056,-250.82015304,0.00032,120]
[397977979,1765262305090,-900.0,0.00032,120]
[397977980,1765262305126,-150.0,0.00032,120]
[397977981,1765262305162,-1000.0,0.00032,120]
[397977982,1765262305199,-1184.0,0.00032,120]
[397977983,1765262305394,-2245.94020134,0.00032,120]
[397977984,1765262305430,-1163.77299,0.000324,120]
[397977985,1765262305464,-300.0,0.000324,120]
[397977986,1765262305499,-200.0,0.000324,120]
[397977987,1765262305532,-500.0,0.000325,120]
[397977988,1765262305565,-213.0,0.00032521,53]
[397977989,1765262305598,-1900.840415,0.00032671,120]
[397977990,1765262305633,-457.681,0.00032692,33]
[397977991,1765262305669,-864.14,0.00032767,30]
[397977992,1765262305711,-1922.48,0.00032876,120]
[397977993,1765262305758,-999.0,0.00032876,120]
[397977994,1765262305796,-264.0,0.00032877,30]
[397977995,1765262305835,-1512.30787859,0.0003288,120]
[397977996,1765262305871,-167.19985043,0.000329,120]
[397977997,1765262305911,-162.44478861,0.000329,120]
[397977998,1765262305946,-175.10810486,0.000329,120]
[397977999,1765262305979,-569.31307638,0.000329,120]
[397978000,1765262306011,-184.97330614,0.000329,120]
[397978001,1765262306045,-582.38771611,0.000329,120]
[397978002,1765262306079,-305.48453806,0.000329,120]
[397978003,1765262306113,-177.06508976,0.000329,120]
[397978004,1765262306154,-697.76350612,0.000329,120]
[397978005,1765262306195,-444.45209109,0.000329,120]
[397978006,1765262306230,-548.53887552,0.000329,120]
[397978007,1765262306264,-944.82205999,0.000329,120]
[397978008,1765262306298,-175.30635976,0.000329,120]
[397978009,1765262306334,-987.63828981,0.000329,120]
[397978010,1765262306369,-1922.48,0.00032904,120]
[397978011,1765262306405,-1922.48,0.00032931,120]
[397978012,1765262306443,-1922.48,0.00032958,120]
[397978013,1765262306478,-1922.48,0.00032986,120]
[397978014,1765262306514,-205.0,0.0003299,34]
[397978015,1765262306550,-4991.3336237,0.00033,120]
[397978016,1765262306590,-700.0,0.00033,120]
[397978017,1765262306625,-500.0,0.00033,120]
[397978018,1765262306659,-1000.0,0.00033,120]
[397978019,1765262306693,-1922.48,0.00033013,120]
[397978020,1765262306728,-1922.48,0.00033041,120]
[397978021,1765262306764,-1922.48,0.00033068,120]
[397978022,1765262306800,-1922.48,0.00033095,120]
[397978023,1765262306836,-1922.48,0.00033123,120]
[397978024,1765262306873,-1922.48,0.0003315,120]
[397978025,1765262306909,-1922.48,0.00033178,120]
[397978026,1765262306946,-2212.59005798,0.000332,117]
[397978027,1765262306985,-2212.59005794,0.000332,117]
[397978028,1765262307021,-2212.59005794,0.000332,117]
[397978029,1765262307059,-2212.59005794,0.000332,117]
[397978030,1765262307096,-2212.59005794,0.000332,117]
[397978031,1765262307133,-1922.48,0.00033205,120]
[397978032,1765262307171,-1922.48,0.00033232,120]
[397978033,1765262307207,-1922.48,0.0003326,120]
[397978034,1765262307242,-338.52789956,0.00033261,30]
[397978035,1765262307278,-1922.48,0.00033287,120]
[397978036,1765262307315,-1163.77299,0.000333,120]
[397978037,1765262307352,-1922.48,0.00033315,120]
[397978038,1765262307388,-1922.48,0.00033342,120]
[397978039,1765262307425,-1922.48,0.00033369,120]
[397978040,1765262307463,-1922.48,0.00033397,120]
[397978041,1765262307500,-1922.48,0.00033424,120]
[397978042,1765262307536,-1922.48,0.00033452,120]
[397978043,1765262307576,-1922.48,0.00033479,120]
[397978044,1765262307613,-1922.63296161,0.00033506,120]
[397978045,1765262307650,-864.14,0.00033671,30]
[397978046,1765262307690,-1762.377604,0.00033701,60]
[397978047,1765262307732,-167.19985043,0.000339,120]
[397978048,1765262307772,-162.44478861,0.000339,120]
[397978049,1765262307809,-175.10810486,0.000339,120]
[397978050,1765262307846,-569.31307638,0.000339,120]
[397978051,1765262307883,-582.38771611,0.000339,120]
[397978052,1765262307921,-305.48453806,0.000339,120]
[397978053,1765262307957,-177.06508976,0.000339,120]
[397978054,1765262307992,-697.76350612,0.000339,120]
[397978055,1765262308026,-444.45209109,0.000339,120]
[397978056,1765262308060,-548.53887552,0.000339,120]
[397978057,1765262308094,-944.82205999,0.000339,120]
[397978058,1765262308131,-175.30635976,0.000339,120]
[397978059,1765262308165,-987.63828981,0.000339,120]
[397978060,1765262308201,-400.0,0.00034,120]
[397978061,1765262308236,-500.0,0.00034,120]
[397978062,1765262308270,-363.77299,0.00034,120]
[397978063,1765262308306,-1163.77304,0.000342,120]
[397978064,1765262308343,-999.0,0.00034246,120]
[397978065,1765262308379,-364.0,0.000344,120]
[397978066,1765262308414,-15182.0,0.000345,120]
[397978067,1765262308448,-1069.7942916,0.00034564,120]
[397978068,1765262308482,-864.14,0.00034575,30]
[397978069,1765262308517,-200.0,0.00034583,120]
[397978070,1765262308552,-163.0,0.00034712,71]
[397978071,1765262308586,-243.44437,0.000348,120]
[397978072,1765262308620,-205.0,0.0003485,39]
[397978073,1765262308656,-167.19985043,0.000349,120]
[397978074,1765262308694,-162.44478861,0.000349,120]
[397978075,1765262308733,-175.10810486,0.000349,120]
[397978076,1765262308770,-569.31307638,0.000349,120]
[397978077,1765262308807,-582.38771611,0.000349,120]
[397978078,1765262308843,-305.48453806,0.000349,120]
[397978079,1765262308877,-177.06508976,0.000349,120]
[397978080,1765262308911,-697.76350612,0.000349,120]
[397978081,1765262308945,-444.45209109,0.000349,120]
[397978082,1765262308981,-548.53887552,0.000349,120]
[397978083,1765262309016,-944.82205999,0.000349,120]
[397978084,1765262309051,-987.63828981,0.000349,120]
[397978085,1765262309088,-172.0,0.00035,120]
[397978086,1765262309374,-585.90111052,0.00035,120]
[397978087,1765262309408,-398.24823396,0.00035,120]
[397978088,1765262309440,-2181.50950396,0.00035,120]
[397978089,1765262309472,-284.957983,0.00035,120]
[397978090,1765262309505,-216.58590871,0.00035,30]
[397978091,1765262309541,-800.0,0.00035,120]
[397978092,1765262309577,-150.0,0.00035,69]
[397978093,1765262309610,-200.0,0.00035,120]
[397978094,1765262309644,-500.0,0.00035,120]
[397978095,1765262309682,-200.0,0.00035,120]
[397978096,1765262309719,-500.0,0.00035,120]
[397978097,1765262309756,-900.70516656,0.00035,120]
[397978098,1765262309791,-163.0,0.00035,120]
[397978099,1765262309828,-200.0,0.00035132,120]
[397978100,1765262309864,-1291.26682,0.0003516,120]
[397978101,1765262309901,-2463.59,0.000352,120]
[397978102,1765262309941,-522193.0253,0.0003544,30]
[397978103,1765262309976,-864.14,0.00035479,30]
[397978104,1765262310010,-159.99999999,0.0003552,120]
[397978105,1765262310045,-172.0,0.000356,120]
[397978106,1765262310079,-999.0,0.00035616,120]
[397978107,1765262310114,-151.0,0.00035616,31]
[397978108,1765262310148,-151.0,0.00035616,31]
[397978109,1765262310182,-151.0,0.00035616,31]
[397978110,1765262310216,-151.0,0.00035616,31]
[397978111,1765262310248,-151.0,0.00035616,31]
[397978112,1765262310282,-151.0,0.00035616,31]
[397978113,1765262310314,-151.0,0.00035616,31]
[397978114,1765262310347,-151.0,0.00035616,31]
[397978115,1765262310381,-151.0,0.00035616,31]
[397978116,1765262310414,-151.0,0.00035616,31]
[397978117,1765262310447,-151.0,0.00035616,31]
[397978118,1765262310480,-151.0,0.00035616,31]
[397978119,1765262310512,-151.0,0.00035616,31]
[397978120,1765262310544,-151.0,0.00035616,31]
[397978121,1765262310579,-151.0,0.00035616,31]
[397978122,1765262310611,-151.0,0.00035616,31]
[397978123,1765262310644,-151.0,0.00035616,31]
[397978124,1765262310680,-286.837704,0.00035616,31]
[397978125,1765262310713,-151.0,0.00035616,31]
[397978126,1765262310747,-151.0,0.00035616,31]
[397978127,1765262310781,-151.0,0.00035616,31]
[397978128,1765262310813,-151.0,0.00035616,31]
[397978129,1765262310847,-151.0,0.00035616,31]
[397978130,1765262310881,-151.0,0.00035616,31]
[397978131,1765262310917,-151.0,0.00035616,31]
[397978132,1765262310950,-276.956469,0.00035616,31]
[397978133,1765262310983,-366.09398096,0.000357,30]
[397978134,1765262311015,-501.25666753,0.0003573,120]
[397978135,1765262311049,-200.0,0.00035775,120]
[397978136,1765262311088,-770.0,0.00035841,30]
[397978137,1765262311121,-150.0,0.00035886,120]
[397978138,1765262311154,-150.0,0.00035886,120]
[397978139,1765262311187,-150.0,0.00035886,120]
[397978140,1765262311222,-150.0,0.00035886,120]
[397978141,1765262311256,-170.0,0.00035886,120]
[397978142,1765262311292,-3859.1579123,0.00036,120]
[397978143,1765262311327,-1111.0,0.00036,120]
[397978144,1765262311361,-400.0,0.00036,120]
[397978145,1765262311396,-500.0,0.00036,120]
[397978146,1765262311430,-3433.59247679,0.00036122,94]
[397978147,1765262311463,-172.0,0.000363,120]
[397978148,1765262311496,-864.14,0.00036383,30]
[397978149,1765262311530,-783959.4789,0.0003644,30]
[397978150,1765262311564,-154.34604736,0.000365,120]
[397978151,1765262311604,-200.0,0.00036513,120]
[397978152,1765262311639,-1124.49968151,0.00036564,120]
[397978153,1765262311672,-200.0,0.0003667,120]
[397978154,1765262311706,-205.0,0.0003671,44]
[397978155,1765262311743,-172.0,0.000369,120]
[397978156,1765262311778,-175.0,0.00036904,93]
[397978157,1765262311818,-999.0,0.00036986,120]
[397978158,1765262311854,-220.27497396,0.00037,120]
[397978159,1765262311893,-800.0,0.00037,120]
[397978160,1765262311933,-500.0,0.00037,120]
[397978161,1765262311968,-976.0,0.00037,120]
[397978162,1765262312000,-397.5795005,0.0003726,30]
[397978163,1765262312033,-397.5795005,0.0003726,30]
[397978164,1765262312068,-397.5795005,0.0003726,30]
[397978165,1765262312103,-864.14,0.00037287,30]
[397978166,1765262312138,-200.0,0.0003742,120]
[397978167,1765262312174,-200.0,0.00037476,120]
[397978168,1765262312208,-552.28564791,0.0003748,30]
[397978169,1765262312244,-172.0,0.000375,120]
[397978170,1765262312278,-500.0,0.000375,120]
[397978171,1765262312312,-162.47411428,0.00037789,30]
[397978172,1765262312347,-1244.9852449,0.00037808,30]
[397978173,1765262312382,-605.9458455,0.00037808,30]
[397978174,1765262312416,-1005.30787766,0.00038,30]
[397978175,1765262312451,-400.0,0.00038,120]
[397978176,1765262312485,-500.0,0.00038,120]
[397978177,1765262312521,-172.0,0.000381,120]
[397978178,1765262312557,-864.14,0.00038191,30]
[397978179,1765262312593,-200.0,0.00038206,120]
[397978180,1765262312629,-999.0,0.00038356,120]
[397978181,1765262312665,-696852.8702,0.0003844,30]
[397978182,1765262312705,-1179.20507142,0.00038564,120]
[397978183,1765262312742,-205.0,0.0003858,49]
[397978184,1765262312780,-311.18693511,0.0003867,120]
[397978185,1765262312817,-519.2847955,0.0003873,120]
[397978186,1765262312854,-172.0,0.000388,120]
[397978187,1765262312892,-5415.82,0.00039,30]
[397978188,1765262312929,-294.23754485,0.00039,120]
[397978189,1765262313127,-700.0,0.00039,120]
[397978190,1765262313167,-500.0,0.00039,120]
[397978191,1765262313202,-10000.0,0.00039041,120]
[397978192,1765262313236,-10000.0,0.00039041,120]
[397978193,1765262313270,-10000.0,0.00039041,120]
[397978194,1765262313305,-10000.0,0.00039041,120]
[397978195,1765262313340,-10000.0,0.00039041,120]
[397978196,1765262313376,-10000.0,0.00039041,120]
[397978197,1765262313409,-10000.0,0.00039041,120]
[397978198,1765262313444,-10000.0,0.00039041,120]
[397978199,1765262313477,-10000.0,0.00039041,120]
[397978200,1765262313510,-10000.0,0.00039041,120]
[397978201,1765262313544,-10000.0,0.00039041,120]
[397978202,1765262313582,-10000.0,0.00039041,120]
[397978203,1765262313618,-10000.0,0.00039041,120]
[397978204,1765262313656,-10000.0,0.00039041,120]
[397978205,1765262313697,-10000.0,0.00039041,120]
[397978206,1765262313733,-10000.0,0.00039041,120]
[397978207,1765262313772,-10000.0,0.00039041,120]
[397978208,1765262313810,-10000.0,0.00039041,120]
[397978209,1765262313846,-10000.0,0.00039041,120]
[397978210,1765262313882,-10000.0,0.00039041,120]
[397978211,1765262313919,-10000.0,0.00039041,120]
[397978212,1765262313955,-10000.0,0.00039041,120]
[397978213,1765262313988,-10000.0,0.00039041,120]
[397978214,1765262314023,-10000.0,0.00039041,120]
[397978215,1765262314058,-10000.0,0.00039041,120]
[397978216,1765262314093,-10000.0,0.00039041,120]
[397978217,1765262314129,-10000.0,0.00039041,120]
[397978218,1765262314165,-10000.0,0.00039041,120]
[397978219,1765262314203,-2486.28025658,0.00039041,120]
[397978220,1765262314238,-864.14,0.00039095,30]
[397978221,1765262314276,-2393.2595201,0.0003939,120]
[397978222,1765262314313,-172.0,0.000394,120]
[397978223,1765262314347,-250.0,0.000395,120]
[397978224,1765262314382,-769.09209686,0.00039726,120]
[397978225,1765262314416,-1000.0,0.000398,120]
[397978226,1765262314449,-1000.0,0.000398,120]
[397978227,1765262314483,-1000.0,0.000398,120]
[397978228,1765262314519,-1000.0,0.000398,120]
[397978229,1765262314557,-1000.0,0.000398,120]
[397978230,1765262314593,-172.0,0.0004,120]
[397978231,1765262314629,-1134.9041569,0.0004,30]
[397978232,1765262314666,-1479.13048691,0.0004,120]
[397978233,1765262314703,-645.5038702,0.0004,30]
[397978234,1765262314739,-201.80235245,0.0004,100]
[397978235,1765262314776,-1098.93242801,0.0004,120]
[397978236,1765262314813,-258.98760496,0.0004,30]
[397978237,1765262314854,-400.0,0.0004,120]
[397978238,1765262314892,-500.0,0.0004,120]
[397978239,1765262314930,-200.0,0.0004,120]
[397978240,1765262314968,-193701.45070361,0.0004,120]
[397978241,1765262329461,-4000000.0,0.0004,120]
[397978242,1765262335069,-175.0,0.0003389,64]
[397978243,1765262335122,-171.0,0.00037178,97]
[397978244,1765262335165,-2067952.19000438,0.0004,120]
[397978245,1765262335204,-10000.0,0.0004,120]
[397978246,1765262335242,-1003.76036119,0.0004,120]
[397978247,1765262335281,-414.23,0.0004,120]
[397978248,1765262335324,-204.25111423,0.0004,120]
[397978249,1765262335363,-826.02341617,0.0004,120]
[397978250,1765262335401,-58083.30063879,0.0004,120]
[397978251,1765262335439,-1000.0,0.0004,120]
[397978252,1765262335478,-1000.0,0.0004,120]
[397978253,1765262335516,-1000.0,0.0004,120]
[397978254,1765262335559,-1000.0,0.0004,120]
[397978255,1765262335601,-1000.0,0.0004,120]
[397978256,1765262335640,-1000.0,0.0004,120]
[397978257,1765262335679,-1000.0,0.0004,120]
[397978258,1765262335718,-1000.0,0.0004,120]
[397978259,1765262335757,-1000.0,0.0004,120]
[397978260,1765262335796,-1000.0,0.0004,120]
[397978261,1765262335834,-1000.0,0.0004,120]
[397978262,1765262335872,-1000.0,0.0004,120]
[397978263,1765262335911,-1000.0,0.0004,120]
[397978264,1765262335951,-1000.0,0.0004,120]
[397978265,1765262335989,-19400.03,0.0004,120]
[397978266,1765262336027,-949.59049536,0.0004,90]
[397978267,1765262336065,-864.14,0.0004,30]
[397978268,1765262336100,-347.30356795,0.0004,120]
[397978269,1765262336138,-200.0,0.00040121,120]
[397978270,1765262336173,-2075.33952441,0.0004018,90]
[397978271,1765262336212,-1291.26682,0.00040183,120]
[397978272,1765262336247,-205.0,0.0004044,55]
[397978273,1765262336282,-250.0,0.000405,120]
[397978274,1765262336319,-1233.91046133,0.00040564,120]
[397978275,1765262336357,-200.0,0.00040564,120]
[397978276,1765262336393,-172.0,0.000406,120]
[397978277,1765262336430,-864.14,0.00040904,30]
[397978278,1765262336467,-200.0,0.00040947,120]
[397978279,1765262336504,-200.0,0.00040964,120]
[397978280,1765262336541,-1000.0,0.00041,120]
[397978281,1765262336576,-5000.0,0.00041,40]
[397978282,1765262336610,-2614.15767718,0.00041,120]
[397978283,1765262336645,-500.0,0.00041,120]
[397978284,1765262336680,-1000.0,0.00041,120]
[397978285,1765262336716,-152.0,0.00041041,120]
[397978286,1765262336752,-2500.0,0.00041095,120]
[397978287,1765262336788,-2500.0,0.00041095,120]
[397978288,1765262336824,-2500.0,0.00041095,120]
[397978289,1765262336860,-507.48053907,0.00041095,120]
[397978290,1765262336897,-218.22,0.00041096,120]
[397978291,1765262336935,-3209.41,0.00041096,120]
[397978292,1765262336970,-151.0,0.00041096,120]
[397978293,1765262337005,-151.0,0.00041096,120]
[397978294,1765262337038,-151.0,0.00041096,120]
[397978295,1765262337074,-254.341777,0.00041096,120]
[397978296,1765262337110,-500.0,0.00041096,120]
[397978297,1765262337148,-2284.76068454,0.00041111,30]
[397978298,1765262337187,-347.30356795,0.000412,120]
[397978299,1765262337224,-347.30356795,0.000412,120]
[397978300,1765262337259,-500.0,0.00041233,120]
[397978301,1765262337305,-172.0,0.000413,120]
[397978302,1765262337348,-500.0,0.0004137,120]
[397978303,1765262337387,-800.0,0.000414,120]
[397978304,1765262337425,-609746.2614,0.0004144,30]
[397978305,1765262337462,-200.0,0.00041454,120]
[397978306,1765262337501,-250.0,0.000415,120]
[397978307,1765262337538,-500.0,0.00041507,120]
[397978308,1765262337575,-500.0,0.00041644,120]
[397978309,1765262337613,-500.0,0.00041781,120]
[397978310,1765262337650,-864.14,0.00041808,30]
[397978311,1765262337690,-172.0,0.000419,120]
[397978312,1765262337731,-574.64997658,0.000419,120]
[397978313,1765262337770,-605.10885893,0.00041918,120]
[397978314,1765262337808,-1000.0,0.00042,120]
[397978315,1765262337847,-400.0,0.00042,120]
[397978316,1765262337885,-500.0,0.00042,120]
[397978317,1765262337923,-1000.0,0.000421,120]
[397978318,1765262337959,-1000.0,0.000421,120]
[397978319,1765262337994,-1000.0,0.000422,120]
[397978320,1765262338029,-282.0,0.000423,60]
[397978321,1765262338064,-1803.76567821,0.000424,120]
[397978322,1765262338101,-172.0,0.000425,120]
[397978323,1765262338138,-250.0,0.000425,120]
[397978324,1765262338173,-600.0,0.0004255,120]
[397978325,1765262338208,-1288.61585124,0.00042564,120]
[397978326,1765262338243,-157.0,0.00042658,120]
[397978327,1765262338279,-864.14,0.00042712,30]
[397978328,1765262338315,-733.235648,0.00042999,120]
[397978329,1765262338350,-1000.0,0.00043,120]
[397978330,1765262338386,-288.14384688,0.00043,120]
[397978331,1765262338423,-506.78,0.00043,120]
[397978332,1765262338462,-800.0,0.00043,120]
[397978333,1765262338498,-500.0,0.00043,120]
[397978334,1765262338534,-10000.0,0.00043,120]
[397978335,1765262338568,-1000.0,0.00043,120]
[397978336,1765262338605,-2872.66480287,0.00043,120]
[397978337,1765262338642,-172.0,0.000431,120]
[397978338,1765262338680,-1528.9845,0.0004322,30]
[397978339,1765262338716,-1000.0,0.000433,120]
[397978340,1765262338754,-1000.0,0.000433,120]
[397978341,1765262339000,-250.0,0.000435,120]
[397978342,1765262339038,-864.14,0.00043616,30]